Workbook

Sheet Sheet1
B2: YAPI RÜZGAR YÜKÜ HESABI (Gürcan BERBEROĞLU tel: 0532 366 02 04 www.betoncelik.com )
AB3: dikkat sadece sarı hücrelere rakam giriniz.
Q6: =SQRT(X11^2+(K41/2)^2) -> 3.535533906 | S6: m
AD8: TS 498 Kasım 1997
O9: 0,4 * q = | AD9: zeminden yükseklik | AH9: rüzgar hızı v | AK9: emme q
E10: =IF(AG20="kule tipi yapı","( 1,6 * sin a - 0,4 ) * q =","( 1,2 * sin a - 0,4 ) * q =") -> ( 1,6 * sin a - 0,4 ) * q = | O10: =0.4*AE17 -> 0.52 | Q10: KN/m² | X10: m
E11: =ABS(IF(AG20="kule tipi yapı",(1.6*SIN(K13*PI()/180)-0.4)*AE17,(1.2*SIN(K13*PI()/180)-0.4)*AE17)) -> 0.9507821049 | G11: KN/m² | X11: 2.5 | AD11: (m) | AH11: (m/s) | AK11: (KN/m²)
E12: =IF(AG20="kule tipi yapı",(1.6*SIN(K13*PI()/180)-0.4)*AE17,(1.2*SIN(K13*PI()/180)-0.4)*AE17) -> 0.9507821049 | AD12: 0 | AE12: ~ | AF12: 8 | AH12: 28 | AK12: 0.5
J13: a = | K13: =ATAN(X11/(K41/2))*180/PI() -> 45 | M13: ° | AD13: 9 | AE13: ~ | AF13: 20 | AH13: 36 | AK13: 0.8
AD14: 21 | AE14: ~ | AF14: 100 | AH14: 42 | AK14: 1.1
AE15: > | AF15: 100 | AH15: 46 | AK15: 1.3
V16: =IF(V17="","","m") -> m
D17: =IF(AG20="kule tipi yapı",IF(AE17=1.3,"1,2 * q =",""),IF(AE17=1.3,"0,8 * q =","")) -> 1,2 * q = | R17: =IF(AE17=1.3,"0,4 * q =","") -> 0,4 * q = | V17: =IF(AE17=1.3,X27-100,IF(AE17=1.1,X27-20,IF(AE17=0.8,X27-8,""))) -> 25 | AE17: =IF(8>=X27,AK12,IF(AND(AD13<=X27,X27<=AF13),AK13,IF(AND(AD14<=X27,X27<=AF14),AK14,IF(X27>AF15,AK15,"hatalı")))) -> 1.3
D18: =IF(AG20="kule tipi yapı",IF(AE17=1.3,1.2*AK15,""),IF(AE17=1.3,0.8*AK15,"")) -> 1.56 | F18: =IF(AE17=1.3,"KN/m²","") -> KN/m² | R18: =IF(AE17=1.3,0.4*AK15,"") -> 0.52 | T18: =IF(AE17=1.3,"KN/m²","") -> KN/m²
D19: =IF(AG20="kule tipi yapı",IF(AE17=1.1,"1,2 * q =",""),IF(AE17=1.1,"0,8 * q =","")) ->  | R19: =IF(AE17=1.1,"0,4 * q =","") -> 
D20: =IF(AG20="kule tipi yapı",IF(AE17=1.1,1.2*AK14,""),IF(AE17=1.1,0.8*AK14,"")) ->  | F20: =IF(AE17=1.1,"KN/m²","") ->  | R20: =IF(AE17=1.1,0.4*AK14,"") ->  | T20: =IF(AE17=1.1,"KN/m²","") ->  | AD20: yapı tipi: | AG20: =IF(K41*5<=(X27+X11),"kule tipi yapı","normal yapı") -> kule tipi yapı
V21: =IF(V22="","","m") -> m
V22: =IF(AE17=1.3,80,"") -> 80 | AD22: Not: yüksekliği plandaki eninin 5 katı ve daha fazlası olduğunda yapı tipi kule tipidir.Değil ise Normal yapıdır.
D23: =IF(AG20="kule tipi yapı",IF(OR(AE17=1.3,AE17=0.8),"1,2 * q =",""),IF(OR(AE17=1.3,AE17=0.8),"0,8 * q =","")) -> 1,2 * q = | R23: =IF(OR(AE17=1.3,AE17=0.8),"0,4 * q =","") -> 0,4 * q =
D24: =IF(AG20="kule tipi yapı",IF(AE17=1.3,1.2*AK14,IF(AE17=0.8,1.2*AK13,"")),IF(AE17=1.3,0.8*AK14,IF(AE17=0.8,0.8*AK13,""))) -> 1.32 | F24: =IF(OR(AE17=1.3,AE17=0.8),"KN/m²","") -> KN/m² | R24: =IF(AE17=1.3,0.4*AK14,IF(AE17=0.8,0.4*AK13,"")) -> 0.44 | T24: =IF(OR(AE17=1.3,AE17=0.8),"KN/m²","") -> KN/m²
V25: =IF(V26="","","m") -> 
D26: =IF(AG20="kule tipi yapı",IF(AE17=0.5,"1,2 * q =",IF(AE17=1.1,"1,2 * q =","")),IF(AE17=0.5,"0,8 * q =",IF(AE17=1.1,"0,8 * q =",""))) ->  | R26: =IF(AE17=0.5,"0,4 *q =",IF(AE17=1.1,"0,4 * q =","")) ->  | V26: =IF(AE17=1.1,12,"") ->  | X26: m
D27: =IF(AG20="kule tipi yapı",IF(AE17=0.5,1.2*AK12,IF(AE17=1.1,1.2*AK13,"")),IF(AE17=0.5,0.8*AK12,IF(AE17=1.1,0.8*AK13,""))) ->  | F27: =IF(AE17=0.5,"KN/m²",IF(AE17=1.1,"KN/m²","")) ->  | R27: =IF(AE17=0.5,0.4*AK12,IF(AE17=1.1,0.4*AK13,"")) ->  | T27: =IF(AE17=0.5,"KN/m²",IF(AE17=1.1,"KN/m²","")) ->  | X27: 125
D29: =IF(AG20="kule tipi yapı",IF(AE17=1.3,"1,2 * q =",""),IF(AE17=1.3,"0,8 * q =","")) -> 1,2 * q = | R29: =IF(AE17=1.3,"0,4 * q =","") -> 0,4 * q = | V29: =IF(V30="","","m") -> m
D30: =IF(AG20="kule tipi yapı",IF(AE17=1.3,1.2*AK13,""),IF(AE17=1.3,0.8*AK13,"")) -> 0.96 | F30: =IF(AE17=1.3,"KN/m²","") -> KN/m² | R30: =IF(AE17=1.3,0.4*AK13,"") -> 0.32 | T30: =IF(AE17=1.3,"KN/m²","") -> KN/m² | V30: =IF(AE17=1.3,12,"") -> 12
D33: =IF(AG20="kule tipi yapı",IF(AE17=0.8,"1,2 * q",IF(AE17=1.1,"1,2 * q =","")),IF(AE17=0.8,"0,8 * q",IF(AE17=1.1,"0,8 * q =",""))) ->  | R33: =IF(AE17=0.8,"0,4 * q =",IF(AE17=1.1,"0,4 * q =","")) -> 
D34: =IF(AG20="kule tipi yapı",IF(AE17=0.8,1.2*AK12,IF(AE17=1.1,1.2*AK12,"")),IF(AE17=0.8,0.8*AK12,IF(AE17=1.1,0.8*AK12,""))) ->  | F34: =IF(AE17=0.8,"KN/m²",IF(AE17=1.1,"KN/m²","")) ->  | R34: =IF(AE17=0.8,0.4*AK12,IF(AE17=1.1,0.4*AK12,"")) ->  | T34: =IF(AE17=0.8,"KN/m²",IF(AE17=1.1,"KN/m²","")) ->  | V34: =IF(V35="","","m") -> m
D35: =IF(AG20="kule tipi yapı",IF(AE17=1.3,"1,2 * q =",""),IF(AE17=1.3,"0,8 * q =","")) -> 1,2 * q = | R35: =IF(AE17=1.3,"0,4 * q =","") -> 0,4 * q = | V35: =IF(OR(AE17=1.1,AE17=0.8,AE17=1.3),8,"") -> 8
D36: =IF(AG20="kule tipi yapı",IF(AE17=1.3,1.2*AK12,""),IF(AE17=1.3,0.8*AK12,"")) -> 0.6 | F36: =IF(AE17=1.3,"KN/m²","") -> KN/m² | R36: =IF(AE17=1.3,0.4*AK12,"") -> 0.2 | T36: =IF(AE17=1.3,"KN/m²","") -> KN/m²
K41: 5 | M41: m
B43: YAPI A YÜZÜNDE OLUŞAN EMME RÜZGAR YÜKÜNE GÖRE m² 'de İZOLASYON PLASTİK DÜBEL SAYISI HESABI (Gürcan BERBEROĞLU tel: 0532 366 02 04 www.betoncelik.com )
AB44: dikkat sadece sarı hücrelere rakam giriniz.
C45: Nk=Dübelin çekme dayanımı , dübeli koparan veya sıyıran karakteristik kuvvet (KN) | AB45: Yukarıdaki şekille beraber düşünülecek.
C46: Nd = Dübel tasarım çekme kuvveti , dübeli çekip çıkarmaya , koparmaya çalışan rüzgar tasarım kuvveti (KN)
C47: Nr = Dübelin güvenle taşıyabileceği çekme kuvveti (KN)
C48: g dübel = Dübel güvenlik katsayısı (2~3)
C49: w =Rüzgar emme kuvveti (KN/m²)
C50: n = 1m² ye çakılması gereken dübel sayısı
C52: ( Nd = w * 1 / n ) = < ( Nr = Nk / g dübel ) olmalı
C54: Nk= | E54: 0.1 | G54: KN
C55: g dübel = | F55: 2 | I55: =IF(AND(2<=F55,F55<=3),"uygun.","uygun değil.2 ile 3 arasında bir değer olmalı.") -> uygun.
C56: Nr = | E56: =+E54 -> 0.1 | G56: / | H56: =+F55 -> 2 | J56: = | K56: =+E56/H56 -> 0.05 | M56: KN | S56: not: bina köşelerinde dübel sayısının her m² de en az 2 adet arttırılması önerilir.
C58: 0 | E58: ~ | F58: =IF(AE17=0.5,X27,IF(AE17=0.8,V35,IF(AE17=1.1,V35,IF(AE17=1.3,V35,0)))) -> 8 | H58: kotlar arası | L58: w= | N58: =IF(AE17=0.5,R27,IF(AE17=0.8,R34,IF(AE17=1.1,R34,IF(AE17=1.3,R36,0)))) -> 0.2 | P58: KN/m² | S58: Nd = w * 1 / n = Nr | Y58: n = w * 1 / Nr = | AC58: =+N58 -> 0.2 | AE58: * 1 / | AG58: =+K56 -> 0.05 | AI58: = | AJ58: =ROUNDDOWN(+AC58*1/AG58,0) -> 4 | AK58: dübel / m²
C60: =IF(F60="","",+AD13) -> 9 | E60: =IF(F60="","","~") -> ~ | F60: =IF(AE17=0.5,"",IF(AE17=0.8,V17,IF(AE17=1.1,V26,IF(AE17=1.3,V30,0)))) -> 12 | H60: =IF(F60="","","kotlar arası") -> kotlar arası | L60: =IF(F60="","","w =") -> w = | N60: =IF(AE17=0.5,"",IF(AE17=0.8,R24,IF(AE17=1.1,R27,IF(AE17=1.3,R30,0)))) -> 0.32 | P60: =IF(F60="","","KN/m²") -> KN/m² | S60: =IF(F60="","","Nd = w * 1 / n = Nr ") -> Nd = w * 1 / n = Nr | Y60: =IF(F60="","","n = w * 1 / Nr = ") -> n = w * 1 / Nr = | AC60: =IF(F60="","",+N60) -> 0.32 | AE60: =IF(F60="","","* 1 / ") -> * 1 / | AG60: =IF(F60="","",+K56) -> 0.05 | AI60: =IF(F60="","","=") -> = | AJ60: =IF(F60="","",ROUNDDOWN(+AC60*1/AG60,0)) -> 6 | AK60: =IF(F60="","","dübel / m²") -> dübel / m²
C62: =IF(F62="","",+AD14) -> 21 | E62: =IF(F62="","","~") -> ~ | F62: =IF(AE17=0.5,"",IF(AE17=0.8,"",IF(AE17=1.1,V17,IF(AE17=1.3,V17,0)))) -> 25 | H62: =IF(F62="","","kotlar arası") -> kotlar arası | L62: =IF(F62="","","w =") -> w = | N62: =IF(AE17=0.5,"",IF(AE17=0.8,"",IF(AE17=1.1,R20,IF(AE17=1.3,R24,0)))) -> 0.44 | P62: =IF(F62="","","KN/m²") -> KN/m² | S62: =IF(F62="","","Nd = w * 1 / n = Nr ") -> Nd = w * 1 / n = Nr | Y62: =IF(F62="","","n = w * 1 / Nr = ") -> n = w * 1 / Nr = | AC62: =+N62 -> 0.44 | AE62: =IF(F62="",""," * 1 / ") -> * 1 / | AG62: =IF(F62="","",+K56) -> 0.05 | AI62: =IF(F62="","","=") -> = | AJ62: =IF(F62="","",ROUNDDOWN(+AC62*1/AG62,0)) -> 8 | AK62: =IF(F62="","","dübel / m²") -> dübel / m²
E64: =IF(F64="","",">") -> > | F64: =IF(AE17=0.5,"",IF(AE17=0.8,"",IF(AE17=1.1,"",IF(AE17=1.3,V17,0)))) -> 25 | H64: =IF(F64="","","kotlar arası") -> kotlar arası | L64: =IF(F64="","","w =") -> w = | N64: =IF(AE17=0.5,"",IF(AE17=0.8,"",IF(AE17=1.1,"",IF(AE17=1.3,R18,0)))) -> 0.52 | P64: =IF(F64="","","KN/m²") -> KN/m² | S64: =IF(F64="","","Nd = w * 1 / n = Nr ") -> Nd = w * 1 / n = Nr | Y64: =IF(F64="","","n = w * 1 / Nr = ") -> n = w * 1 / Nr = | AC64: =+N64 -> 0.52 | AE64: =IF(F64="","","* 1 / ") -> * 1 / | AG64: =IF(F64="","",+K56) -> 0.05 | AI64: =IF(F64="","","=") -> = | AJ64: =IF(F64="","",ROUNDDOWN(+AC64*1/AG64,0)) -> 10 | AK64: =IF(F64="","","dübel / m²") -> dübel / m²
B66: REKLAM PANOSU RÜZGAR YÜKÜ VE KONSOL MOMENTİ HESABI (Gürcan BERBEROĞLU tel: 0532 366 02 04 www.betoncelik.com )
AB67: dikkat sadece sarı hücrelere rakam giriniz.
G68: 5 | I68: m
N72: m
D73: www.betoncelik.com | N73: 3
R74: =IF(AA74="","","1,6 * q =") ->  | T74: =IF(AA74="","",1.6*AK114) ->  | V74: =IF(AA74="","","KN/m²") ->  | AA74: =IF(P87>100,P87-100,"") ->  | AC74: =IF(AA74="","","m") -> 
R75: =IF(AA75="","","1,6 * q =") -> 1,6 * q = | T75: =IF(AA75="","",1.6*AK113) -> 1.76 | V75: =IF(AA75="","","KN/m²") -> KN/m² | AA75: =IF(AND(100>=P87,P87>20),P87-20,"") -> 10 | AC75: =IF(AA75="","","m") -> m
R78: =IF(AA78="","","1,6 * q =") ->  | T78: =IF(AA78="","",1.6*AK112) ->  | V78: =IF(AA78="","","KN/m²") ->  | AA78: =IF(AND(20>=P87,P87>8),P87-8,"") ->  | AC78: =IF(AA78="","","m") -> 
K81: pano
R82: =IF(AA82="","","1,6 * q =") ->  | T82: =IF(AA82="","",1.6*AK113) ->  | V82: =IF(AA82="","","KN/m²") ->  | AA82: =IF(P87>100,80,"") ->  | AC82: =IF(AA82="","","m") -> 
N86: m | P86: m | R86: =IF(AA86="","","1,6 * q =") -> 1,6 * q = | T86: =IF(AA86="","",1.6*AK112) -> 1.28 | V86: =IF(AA86="","","KN/m²") -> KN/m² | AA86: =IF(AND(100>=P87,P87>20),12,"") -> 12 | AC86: =IF(AA86="","","m") -> m
N87: =+P87-N73 -> 27 | P87: 30 | R87: =IF(AA87="","","1,6 * q =") ->  | T87: =IF(AA87="","",1.6*AK111) ->  | V87: =IF(AA87="","","KN/m²") ->  | AA87: =IF(P87<=8,P87,"") ->  | AC87: =IF(AA87="","","m") -> 
J90: ayak | P90: =IF(P87<=8,1,IF(AND(9<=P87,P87<=20),2,IF(AND(21<=P87,P87<=100),3,IF(101<=P87,4,0)))) -> 3 | R90: =IF(AA90="","","1,6 * q =") ->  | T90: =IF(AA90="","",1.6*AK112) ->  | V90: =IF(AA90="","","KN/m²") ->  | AA90: =IF(P87>100,12,"") ->  | AC90: =IF(AA90="","","m") -> 
C91: ÖN GÖRÜNÜŞ | AH91: YAN GÖRÜNÜŞ
R93: =IF(AA93="","","1,6 * q =") ->  | T93: =IF(AA93="","",1.6*AK111) ->  | V93: =IF(AA93="","","KN/m²") ->  | AA93: =IF(AND(20>=P87,P87>8),8,"") ->  | AC93: =IF(AA93="","","m") -> 
R96: =IF(AA96="","","1,6 * q =") -> 1,6 * q = | T96: =IF(AA96="","",1.6*AK111) -> 0.8 | V96: =IF(AA96="","","KN/m²") -> KN/m² | AA96: =IF(AND(100>=P87,P87>20),8,"") -> 8 | AC96: =IF(AA96="","","m") -> m
R98: =IF(AA98="","","1,6 * q =") ->  | T98: =IF(AA98="","",1.6*AK111) ->  | V98: =IF(AA98="","","KN/m²") ->  | AA98: =IF(P87>100,8,"") ->  | AC98: =IF(AA98="","","m") -> 
AG103: M
K104: w= 1,2 * q (KN/m²) | Q104: w= 0,4 * q (KN/m²) | W104: w= 1,6 * q (KN/m²)
R107: = | AD107: TS 498 Kasım 1997
AD108: zeminden yükseklik | AH108: rüzgar hızı v | AK108: emme q
E110: =+I110 -> 0.012 | G110: =+G112-I110*2 -> 0.776 | I110: 0.012 | K110: m | AD110: (m) | AH110: (m/s) | AK110: (KN/m²)
AD111: 0 | AE111: ~ | AF111: 8 | AH111: 28 | AK111: 0.5
G112: 0.8 | I112: m | AD112: 9 | AE112: ~ | AF112: 20 | AH112: 36 | AK112: 0.8
AD113: 21 | AE113: ~ | AF113: 100 | AH113: 42 | AK113: 1.1
C114: Ayak Çapı = | G114: =+G112 -> 0.8 | I114: m | AE114: > | AF114: 100 | AH114: 46 | AK114: 1.3
C116: Pano bileşke yük ( | H116: =SUM(C122:D125) -> 1.76 | J116: * | K116: =SUM(I122:J125) -> 3 | M116: + | N116: =SUM(E122:F125) -> 0 | P116: * | Q116: =SUM(K122:L125) -> 0 | S116: ) * | T116: =SUM(G122:H125) -> 5 | V116: = | W116: =(H116*K116+N116*Q116)*T116 -> 26.4 | Y116: KN
C117: Ayak Bileşke yük ( | H117: =SUM(C127:D130) -> 1.76 | J117: * | K117: =SUM(M127:N130) -> 7 | M117: + | N117: =SUM(E127:F130) -> 1.28 | P117: * | Q117: =SUM(O127:P130) -> 12 | S117: + | T117: =SUM(G127:H130) -> 0.8 | V117: * | W117: =SUM(Q127:R130) -> 8 | Y117: + | Z117: =SUM(I127:J130) -> 0 | AB117: * | AC117: =SUM(S127:T130) -> 0 | AE117: ) * | AF117: =SUM(K127:L130) -> 0.8 | AH117: = | AI117: =(H117*K117+N117*Q117+T117*W117+Z117*AC117)*AF117 -> 27.264 | AK117: KN
C118: toplam bileşke yatay yük = | J118: =+W116 -> 26.4 | L118: + | M118: =+AI117 -> 27.264 | O118: = | P118: =+J118+M118 -> 53.664 | R118: KN
C119: Panoya etkiyen rüzgar yükünden dolayı ayak dibinde oluşan konsol momenti
C120: M1 = | E120: =SUM(C122:D125) -> 1.76 | G120: * | H120: =SUM(I122:J125) -> 3 | J120: * | K120: =SUM(G122:H125) -> 5 | M120: * | N120: =SUM(M122:N125) -> 28.5 | P120: + | Q120: =SUM(E122:F125) -> 0 | S120: * | T120: =SUM(K122:L125) -> 0 | V120: * | W120: =SUM(G122:H125) -> 5 | Y120: * | Z120: =SUM(O122:P125) -> 0 | AB120: = | AC120: =+E120*H120*K120*N120+Q120*T120*W120*Z120 -> 752.4 | AE120: KNm
C122: =IF(T87="",0,T87) -> 0 | G122: =IF(T87="",0,G68) -> 0 | I122: =IF(T87="",0,N73) -> 0 | M122: =IF(T87="",0,P87-N73/2) -> 0
C123: =IF(T78="",0,T78) -> 0 | E123: =IF(T78="",0,IF(N73>AA78,T93,0)) -> 0 | G123: =IF(T78="",0,G68) -> 0 | I123: =IF(T78="",0,IF(N73>AA78,AA78,N73)) -> 0 | K123: =IF(T78="",0,IF(N73>AA78,N73-AA78,0)) -> 0 | M123: =IF(T78="",0,P87-I123/2) -> 0 | O123: =IF(K123=0,0,IF(T78="",0,P87-(I123+K123/2))) -> 0
C124: =IF(T75="",0,T75) -> 1.76 | E124: =IF(T75="",0,IF(N73>AA75,T86,0)) -> 0 | G124: =IF(T75="",0,G68) -> 5 | I124: =IF(T75="",0,IF(N73>AA75,AA75,N73)) -> 3 | K124: =IF(T75="",0,IF(N73>AA75,N73-AA75,0)) -> 0 | M124: =IF(T75="",0,P87-I124/2) -> 28.5 | O124: =IF(K124=0,0,IF(T75="",0,P87-(I124+K124/2))) -> 0
C125: =IF(T74="",0,T74) -> 0 | E125: =IF(T74="",0,IF(N73>AA74,T82,0)) -> 0 | G125: =IF(T74="",0,G68) -> 0 | I125: =IF(T74="",0,IF(N73>AA74,AA74,N73)) -> 0 | K125: =IF(T74="",0,IF(N73>AA74,N73-AA74,0)) -> 0 | M125: =IF(T74="",0,P87-I125/2) -> 0 | O125: =IF(K125=0,0,IF(T74="",0,P87-(I125+K125/2))) -> 0
C127: =IF(T87="",0,T87) -> 0 | K127: =IF(T87="",0,G114) -> 0 | M127: =IF(T87="",0,N87) -> 0 | U127: =IF(T87="",0,N87/2) -> 0
C128: =IF(T78="",0,IF(N73>AA78,T93,T78)) -> 0 | E128: =IF(T78="",0,IF(N87>=AA93,T93,0)) -> 0 | K128: =IF(T78="",0,G114) -> 0 | M128: =IF(T78="",0,IF(N87>=AA93,N87-8,N87)) -> 0 | O128: =IF(T93="",0,IF(N87>=AA93,AA93,0)) -> 0 | U128: =IF(T78="",0,N87-M128/2) -> 0 | W128: =IF(T78="",0,N87-(M128+O128/2)) -> 0
C129: =IF(T75="",0,IF(N73>AA75,0,T75)) -> 1.76 | E129: =IF(T75="",0,IF(N87>=AA86,T86,0)) -> 1.28 | G129: =IF(T75="",0,IF(N87>=AA96,T96,0)) -> 0.8 | K129: =IF(T75="",0,G114) -> 0.8 | M129: =IF(T75="",0,IF(N73>AA75,0,IF(N87>=AA86,N87-20,N87))) -> 7 | O129: =IF(T86="",0,IF(N73>AA75,AA86+AA75-N73,IF(N87>=AA86,AA86,0))) -> 12 | Q129: =IF(T96="",0,IF(N87>=AA96,AA96,0)) -> 8 | U129: =IF(T75="",0,N87-M129/2) -> 23.5 | W129: =IF(T75="",0,N87-(M129+O129/2)) -> 14 | Y129: =IF(T75="",0,N87-(M129+O129+Q129/2)) -> 4
C130: =IF(T74="",0,IF(N73>AA74,0,T74)) -> 0 | E130: =IF(T74="",0,IF(N87>=AA82,T82,0)) -> 0 | G130: =IF(T74="",0,IF(N87>=AA90,T90,0)) -> 0 | I130: =IF(T74="",0,IF(N87>=AA98,T98,0)) -> 0 | K130: =IF(T74="",0,G114) -> 0 | M130: =IF(T74="",0,IF(N73>AA74,0,IF(N87>=AA82,N87-100,N87))) -> 0 | O130: =IF(T82="",0,IF(N73>AA74,AA82+AA74-N73,IF(N87>=AA82,AA82,0))) -> 0 | Q130: =IF(T90="",0,IF(N87>=AA90,AA90,0)) -> 0 | S130: =IF(T98="",0,IF(N87>=AA98,AA98,0)) -> 0 | U130: =IF(T74="",0,N87-M130/2) -> 0 | W130: =IF(T74="",0,N87-(M130+O130/2)) -> 0 | Y130: =IF(T74="",0,N87-(M130+O130+Q130/2)) -> 0 | AA130: =IF(T74="",0,N87-(M130+O130+Q130+S130/2)) -> 0
C132: Ayak gövdesine etkiyen rüzgar yükünden dolayı ayak dibinde oluşan konsol momenti
C133: M2 = | E133: =SUM(C127:D130) -> 1.76 | G133: * | H133: =SUM(M127:N130) -> 7 | J133: * | K133: =SUM(K127:L130) -> 0.8 | M133: * | N133: =SUM(U127:V130) -> 23.5 | P133: + | Q133: =SUM(E127:F130) -> 1.28 | S133: * | T133: =SUM(O127:P130) -> 12 | V133: * | W133: =SUM(K127:L130) -> 0.8 | Y133: * | Z133: =SUM(W127:X130) -> 14 | AB133: + | AC133: =SUM(G127:H130) -> 0.8 | AE133: * | AF133: =SUM(Q127:R130) -> 8 | AH133: * | AI133: =SUM(K127:L130) -> 0.8 | AK133: * | AL133: =SUM(Y127:Z130) -> 4 | AN133: +
E134: =SUM(I127:J130) -> 0 | G134: * | H134: =SUM(S127:T130) -> 0 | J134: * | K134: =SUM(K127:L130) -> 0.8 | M134: * | N134: =SUM(AA127:AB130) -> 0 | P134: = | Q134: =E133*H133*K133*N133+Q133*T133*W133*Z133+AC133*AF133*AI133*AL133+E134*H134*K134*N134 -> 424.128 | S134: KNm
C136: Toplam ayak dibinde oluşan konsol momenti
C137: M = M1 + M2 = | H137: =+AC120 -> 752.4 | J137: + | K137: =+Q134 -> 424.128 | M137: = | N137: =+K137+H137 -> 1176.528 | P137: KNm
B139: BAYRAK DİREĞİ RÜZGAR YÜKÜ VE KONSOL MOMENTİ HESABI (Gürcan BERBEROĞLU tel: 0532 366 02 04 www.betoncelik.com )
AB140: dikkat sadece sarı hücrelere rakam giriniz.
J141: 15 | L141: m
X143: =+T199 -> 2.206618834 | Z143: KN
R145: m
R146: 10
W147: =IF(AG147="","","1,6 * q =") ->  | Z147: =IF(AG147="","",1.6*AJ185) ->  | AB147: =IF(AG147="","","KN/m²") ->  | AG147: =IF(T160>100,T160-100,"") ->  | AI147: =IF(AG147="","","m") -> 
W148: =IF(AG148="","","1,6 * q =") -> 1,6 * q = | Z148: =IF(AG148="","",1.6*AJ184) -> 1.76 | AB148: =IF(AG148="","","KN/m²") -> KN/m² | AG148: =IF(AND(100>=T160,T160>20),T160-20,"") -> 10 | AI148: =IF(AG148="","","m") -> m
W151: =IF(AG151="","","1,6 * q =") ->  | Z151: =IF(AG151="","",1.6*AJ183) ->  | AB151: =IF(AG151="","","KN/m²") ->  | AG151: =IF(AND(20>=T160,T160>8),T160-8,"") ->  | AI151: =IF(AG151="","","m") -> 
X152: =+T199 -> 2.206618834 | Z152: KN
L154: bayrak
W155: =IF(AG155="","","1,6 * q =") ->  | Z155: =IF(AG155="","",1.6*AJ184) ->  | AB155: =IF(AG155="","","KN/m²") ->  | AG155: =IF(T160>100,80,"") ->  | AI155: =IF(AG155="","","m") -> 
R159: m | T159: m | W159: =IF(AG159="","","1,6 * q =") -> 1,6 * q = | Z159: =IF(AG159="","",1.6*AJ183) -> 1.28 | AB159: =IF(AG159="","","KN/m²") -> KN/m² | AG159: =IF(AND(100>=T160,T160>20),12,"") -> 12 | AI159: =IF(AG159="","","m") -> m
R160: =+T160-R146 -> 20 | T160: 30 | W160: =IF(AG160="","","1,6 * q =") ->  | Z160: =IF(AG160="","",1.6*AJ182) ->  | AB160: =IF(AG160="","","KN/m²") ->  | AG160: =IF(T160<=8,T160,"") ->  | AI160: =IF(AG160="","","m") -> 
H163: ayak | T163: =IF(T160<=8,1,IF(AND(9<=T160,T160<=20),2,IF(AND(21<=T160,T160<=100),3,IF(101<=T160,4,0)))) -> 3 | W163: =IF(AG163="","","1,6 * q =") ->  | Z163: =IF(AG163="","",1.6*AJ183) ->  | AB163: =IF(AG163="","","KN/m²") ->  | AG163: =IF(T160>100,12,"") ->  | AI163: =IF(AG163="","","m") -> 
W166: =IF(AG166="","","1,6 * q =") ->  | Z166: =IF(AG166="","",1.6*AJ182) ->  | AB166: =IF(AG166="","","KN/m²") ->  | AG166: =IF(AND(20>=T160,T160>8),8,"") ->  | AI166: =IF(AG166="","","m") -> 
W169: =IF(AG169="","","1,6 * q =") -> 1,6 * q = | Z169: =IF(AG169="","",1.6*AJ182) -> 0.8 | AB169: =IF(AG169="","","KN/m²") -> KN/m² | AG169: =IF(AND(100>=T160,T160>20),8,"") -> 8 | AI169: =IF(AG169="","","m") -> m
W171: =IF(AG171="","","1,6 * q =") ->  | Z171: =IF(AG171="","",1.6*AJ182) ->  | AB171: =IF(AG171="","","KN/m²") ->  | AG171: =IF(T160>100,8,"") ->  | AI171: =IF(AG171="","","m") -> 
AL176: M
K177: w= 1,2 * q (KN/m²) | Q177: w= 0,4 * q (KN/m²) | W177: w= 1,6 * q (KN/m²)
AC178: TS 498 Kasım 1997
AC179: zeminden yükseklik | AG179: rüzgar hızı v | AJ179: emme q
R180: =
AC181: (m) | AG181: (m/s) | AJ181: (KN/m²)
AC182: 0 | AD182: ~ | AE182: 8 | AG182: 28 | AJ182: 0.5
C183: =+G183 -> 0.02 | E183: =+E185-G183*2 -> 1.06 | G183: 0.02 | I183: m | AC183: 9 | AD183: ~ | AE183: 20 | AG183: 36 | AJ183: 0.8
AC184: 21 | AD184: ~ | AE184: 100 | AG184: 42 | AJ184: 1.1
E185: 1.1 | G185: m | M185: Ayak Çapı = | Q185: =+E185 -> 1.1 | S185: m | AD185: > | AE185: 100 | AG185: 46 | AJ185: 1.3
C187: Bayrağın dalgalanmasıyla oluşan aerodinamik yük
C188: W = Cf * q * A (TS 498 madde 11.2.1)
C189: W = bayrağın dalgalanmasıyla direğe etkiyen aerodinamik yük
C190: A = bayrağın alanı
C191: q = bayrak direğin üst noktasındaki rüzgar basıncıdır. | R191: q = | S191: =IF(8>=T160,AJ182,IF(AND(AC183<=T160,T160<=AE183),AJ183,IF(AND(AC184<=T160,T160<=AE184),AJ184,IF(T160>AE185,AJ185,"hatalı")))) -> 1.1 | U191: KN/m²
C192: Cf = aerodinamik yük katsayısı Alman standartında DIN EN 1991-1-4:2010-12 de verilen bağıntı ile hesaplanacaktır.TS 498 'de verilmemiştir.
C193: Cf = 0,02 + 0,7 * m / ( p * e ) * ( A / e² )-1,25 ile hesaplanacaktır.
C194: m = bayrağın 1m² sinin kütlesi yaklaşık 0,15~0,20 kg/m² | S194: m = | U194: 0.2 | W194: kg/m²
C195: p = 1 m3 havanın kütlesi yaklaşık 1,15~1,42 kg/m3 | S195: p = | U195: 1.25 | W195: kg/m3
C196: e = bayrağın eni
C197: Cf = | E197: 0.02 | G197: + | H197: 0.7 | J197: * | K197: =+U194 -> 0.2 | M197: /( | N197: =+U195 -> 1.25 | P197: * | Q197: =+R146 -> 10 | S197: )*( | T197: =+J141 -> 15 | V197: * | W197: =+R146 -> 10 | Y197: / | Z197: =+R146 -> 10 | AB197: ² )-1,25 = | AE197: =E197+H197*K197/(N197*Q197)*(T197*W197/Z197^2)^-1.25 -> 0.02674689496
C198: W = Cf * q * A = | H198: =+AE197 -> 0.02674689496 | K198: * | L198: =+S191 -> 1.1 | N198: * | O198: =+J141 -> 15 | Q198: * | R198: =+R146 -> 10 | T198: = | U198: =H198*L198*O198*R198 -> 4.413237668 | W198: KN
C199: bayrağın takıldığı üst ve alt noktalarda W / 2 = | O199: =+U198 -> 4.413237668 | Q199: / | R199: 2 | S199: = | T199: =+O199/R199 -> 2.206618834 | V199: KN | X199: etki eder.
C201: Ayak Bileşke yük = ( | I201: =SUM(C206:D209) -> 1.76 | K201: * | L201: =SUM(M206:N209) -> 10 | N201: + | O201: =SUM(E206:F209) -> 1.28 | Q201: * | R201: =SUM(O206:P209) -> 12 | T201: + | U201: =SUM(G206:H209) -> 0.8 | W201: * | X201: =SUM(Q206:R209) -> 8 | Z201: + | AA201: =SUM(I206:J209) -> 0 | AC201: * | AD201: =SUM(S206:T209) -> 0 | AF201: ) * | AG201: =SUM(K206:L209) -> 1.1 | AI201: = | AJ201: =(I201*L201+O201*R201+U201*X201+AA201*AD201)*AG201 -> 43.296 | AL201: KN
C202: bayrak takıldığı üst ve alt ucu bileşke yük = | N202: =+U198 -> 4.413237668 | P202: KN
C203: toplam yatay bileşke yük = | J203: =+AJ201 -> 43.296 | L203: + | M203: =+N202 -> 4.413237668 | O203: = | P203: =+J203+M203 -> 47.70923767 | R203: KN
C204: Bayrağın takıldığı üst ve alt ucundaki aerodinamik yükten dolayı ayak dibinde oluşan konsol momenti
C205: M1 = | E205: =+T199 -> 2.206618834 | G205: * | H205: =+T160 -> 30 | J205: + | K205: =+T199 -> 2.206618834 | M205: * | N205: =+R160 -> 20 | P205: = | Q205: =+E205*H205+K205*N205 -> 110.3309417 | S205: KNm
C206: =IF(Z160="",0,Z160) -> 0 | K206: =IF(Z160="",0,Q185) -> 0 | M206: =IF(Z160="",0,T160) -> 0 | U206: =IF(Z160="",0,T160/2) -> 0
C207: =IF(Z151="",0,IF(R146>AG151,Z166,Z151)) -> 0 | E207: =IF(Z151="",0,IF(R160>=AG166,Z166,0)) -> 0 | K207: =IF(Z151="",0,Q185) -> 0 | M207: =IF(Z151="",0,IF(T160>=AG166,T160-8,T160)) -> 0 | O207: =IF(Z166="",0,IF(T160>=AG166,AG166,0)) -> 0 | U207: =IF(Z151="",0,T160-M207/2) -> 0 | W207: =IF(Z151="",0,T160-(M207+O207/2)) -> 0
C208: =IF(Z148="",0,IF(R146>AG148,0,Z148)) -> 1.76 | E208: =IF(Z148="",0,IF(R160>=AG159,Z159,0)) -> 1.28 | G208: =IF(Z148="",0,IF(R160>=AG169,Z169,0)) -> 0.8 | K208: =IF(Z148="",0,Q185) -> 1.1 | M208: =IF(Z148="",0,IF(T160>=AG159,T160-20,T160)) -> 10 | O208: =IF(Z159="",0,IF(T147>AG148,AG159+AG148-T147,IF(T160>=AG159,AG159,0))) -> 12 | Q208: =IF(Z169="",0,IF(T160>=AG169,AG169,0)) -> 8 | U208: =IF(Z148="",0,T160-M208/2) -> 25 | W208: =IF(Z148="",0,T160-(M208+O208/2)) -> 14 | Y208: =IF(Z148="",0,T160-(M208+O208+Q208/2)) -> 4
C209: =IF(Z147="",0,IF(R146>AG147,0,Z147)) -> 0 | E209: =IF(Z147="",0,IF(R160>=AG155,Z155,0)) -> 0 | G209: =IF(Z147="",0,IF(R160>=AG163,Z163,0)) -> 0 | I209: =IF(Z147="",0,IF(R160>=AG171,Z171,0)) -> 0 | K209: =IF(Z147="",0,Q185) -> 0 | M209: =IF(Z147="",0,IF(T160>=AG155,T160-100,T160)) -> 0 | O209: =IF(Z155="",0,IF(T147>AG147,AG155+AG147-T147,IF(T160>=AG155,AG155,0))) -> 0 | Q209: =IF(Z163="",0,IF(T160>=AG163,AG163,0)) -> 0 | S209: =IF(Z171="",0,IF(T160>=AG171,AG171,0)) -> 0 | U209: =IF(Z147="",0,T160-M209/2) -> 0 | W209: =IF(Z147="",0,T160-(M209+O209/2)) -> 0 | Y209: =IF(Z147="",0,T160-(M209+O209+Q209/2)) -> 0 | AA209: =IF(Z147="",0,T160-(M209+O209+Q209+S209/2)) -> 0
C211: Ayak gövdesine etkiyen rüzgar yükünden dolayı ayak dibinde oluşan konsol momenti
C212: M2 = | E212: =SUM(C206:D209) -> 1.76 | G212: * | H212: =SUM(M206:N209) -> 10 | J212: * | K212: =SUM(K206:L209) -> 1.1 | M212: * | N212: =SUM(U206:V209) -> 25 | P212: + | Q212: =SUM(E206:F209) -> 1.28 | S212: * | T212: =SUM(O206:P209) -> 12 | V212: * | W212: =SUM(K206:L209) -> 1.1 | Y212: * | Z212: =SUM(W206:X209) -> 14 | AB212: + | AC212: =SUM(G206:H209) -> 0.8 | AE212: * | AF212: =SUM(Q206:R209) -> 8 | AH212: * | AI212: =SUM(K206:L209) -> 1.1 | AK212: * | AL212: =SUM(Y206:Z209) -> 4 | AN212: +
E213: =SUM(I206:J209) -> 0 | G213: * | H213: =SUM(S206:T209) -> 0 | J213: * | K213: =SUM(K206:L209) -> 1.1 | M213: * | N213: =SUM(AA206:AB209) -> 0 | P213: = | Q213: =E212*H212*K212*N212+Q212*T212*W212*Z212+AC212*AF212*AI212*AL212+E213*H213*K213*N213 -> 748.704 | S213: KNm
C215: Toplam ayak dibinde oluşan konsol momenti
C216: M = M1 + M2 = | H216: =+Q205 -> 110.3309417 | J216: + | K216: =+Q213 -> 748.704 | M216: = | N216: =+K216+H216 -> 859.0349417 | P216: KNm

Sheet Sheet2

Sheet Sheet3
